bitfinex-derivatives/quotes_BTCF0:USTF0_20250417
["timestamp","ask_amount","ask_price","bid_price","bid_amount"]
[1744854815297,0.00010801,84355.0,84354.0,0.3378361]
[1744854815497,0.11866411,84355.0,84354.0,0.3378361]
[1744854815700,0.00010801,84355.0,84354.0,0.3378361]
[1744854816602,0.11866411,84355.0,84354.0,0.3378361]
[1744854817098,0.11866411,84355.0,84354.0,0.16]
[1744854817305,0.12266411,84355.0,84354.0,0.16]
[1744854817493,0.12766411,84355.0,84354.0,0.161]
[1744854817904,0.12766411,84355.0,84354.0,0.2795575]
[1744854820300,0.19036411,84355.0,84354.0,0.001]
[1744854821096,0.19036411,84355.0,84354.0,0.1195575]
[1744854821798,0.19036411,84355.0,84354.0,0.001]
[1744854822397,0.19036411,84355.0,84354.0,0.1195575]
[1744854823102,0.19036411,84355.0,84354.0,0.001]
[1744854825201,0.19036411,84355.0,84354.0,0.2995575]
[1744854827204,0.19036411,84355.0,84354.0,0.001]
[1744854828296,0.55116411,84355.0,84354.0,0.001]
[1744854831010,0.55116411,84355.0,84354.0,0.0332]
[1744854832005,0.19036411,84355.0,84354.0,0.0332]
[1744854832211,0.55116411,84355.0,84354.0,0.0332]
[1744854832507,0.55116411,84355.0,84354.0,0.1517575]
[1744854835714,0.55116411,84355.0,84354.0,0.0332]
[1744854838607,0.19036411,84355.0,84354.0,0.0332]
[1744854838806,0.55116411,84355.0,84354.0,0.0332]
[1744854846016,0.48846411,84355.0,84354.0,0.1517575]
[1744854846413,0.1275561,84355.0,84354.0,0.3117575]
[1744854847204,0.00908,84355.0,84354.0,0.3117575]
[1744854847513,0.009,84355.0,84354.0,0.3117575]
[1744854847709,0.00908,84355.0,84354.0,0.3117575]
[1744854849213,0.1276361,84355.0,84354.0,0.3117575]
[1744854855513,0.00908,84355.0,84354.0,0.3117575]
[1744854856813,0.00908,84355.0,84354.0,0.6725575]
[1744854858019,0.009,84355.0,84354.0,0.6725575]
[1744854858323,0.00908,84355.0,84354.0,0.6725575]
[1744854861825,0.00908,84355.0,84354.0,0.3117575]
[1744854863322,0.1276361,84355.0,84354.0,0.3117575]
[1744854863522,0.1608361,84355.0,84354.0,0.3117575]
[1744854867440,0.1276361,84355.0,84354.0,0.3117575]
[1744854877254,0.1593361,84355.0,84354.0,0.3117575]
[1744854885445,0.1593361,84355.0,84354.0,0.3434575]
[1744854889071,0.1592561,84355.0,84354.0,0.3434575]
[1744854897376,0.1592561,84355.0,84354.0,0.3117575]
[1744854899978,0.1275561,84355.0,84354.0,0.3117575]
[1744854900467,0.1276361,84355.0,84354.0,0.3117575]
[1744854900676,0.1276361,84355.0,84354.0,0.3429575]
[1744854908380,0.00908,84355.0,84354.0,0.3429575]
[1744854909077,0.1276361,84355.0,84354.0,0.3429575]
[1744854909674,0.00908,84355.0,84354.0,0.3429575]
[1744854909879,0.009,84355.0,84354.0,0.3429575]
[1744854910083,0.00908,84355.0,84354.0,0.3429575]
[1744854910480,0.009,84355.0,84354.0,0.3429575]
[1744854910781,0.00908,84355.0,84354.0,0.3429575]
[1744854936597,1e-08,84358.0,84357.0,0.1185532]
[1744854936795,1e-08,84358.0,84357.0,0.6393532]
[1744854937301,1e-08,84358.0,84357.0,0.7026532]
[1744854937693,0.00500001,84358.0,84357.0,0.71440441]
[1744854938798,0.00900001,84358.0,84357.0,0.7026532]
[1744854939498,0.00700001,84358.0,84357.0,0.7026532]
[1744854939697,0.00308001,84358.0,84357.0,0.7026532]
[1744854946902,0.00011708,84363.0,84362.0,0.1185462]
[1744854947108,0.00011708,84363.0,84362.0,0.2685462]
[1744854947907,0.00011708,84363.0,84362.0,0.3298462]
[1744854948401,0.00010801,84366.0,84365.0,0.118542]
[1744854948701,0.00014581,84371.0,84370.0,0.118535]
[1744854948905,0.0318,84372.0,84371.0,0.1185336]
[1744854949201,0.0318,84372.0,84371.0,0.2985336]
[1744854950199,0.0368,84372.0,84371.0,0.2985336]
[1744854950598,0.03688,84372.0,84371.0,0.2985336]
[1744854952010,0.04088,84372.0,84371.0,0.2985336]
[1744854952799,0.00908,84372.0,84371.0,0.2985336]
[1744854953399,0.009,84372.0,84371.0,0.2985336]
[1744854953600,0.00908,84372.0,84371.0,0.2985336]
[1744854953806,0.00014581,84381.0,84380.0,0.1185209]
[1744854954007,0.00014581,84381.0,84380.0,0.2885209]
[1744854954406,0.033,84383.0,84382.0,0.1185181]
[1744854954712,0.033,84383.0,84382.0,0.2785181]
[1744854955096,0.005,84384.0,84383.0,0.1185167]
[1744854955305,0.005,84384.0,84383.0,0.3118167]
[1744854955501,0.005,84384.0,84383.0,0.3432167]
[1744854955713,0.00508,84384.0,84383.0,0.3432167]
[1744854955910,0.005,84384.0,84383.0,0.3432167]
[1744854956713,0.00808,84384.0,84383.0,0.3432167]
[1744854956912,0.011,84384.0,84383.0,0.3432167]
[1744854957107,0.01108,84384.0,84383.0,0.3432167]
[1744854961209,0.1295953,84384.0,84383.0,0.3099167]
[1744854961914,0.01108,84384.0,84383.0,0.3099167]
[1744854967315,0.01108,84384.0,84383.0,0.6707167]
[1744854969216,0.1295953,84384.0,84383.0,0.6707167]
[1744854969413,0.1624953,84384.0,84383.0,0.6707167]
[1744854969613,0.07048,84384.0,84383.0,0.6707167]
[1744854972716,0.04398,84384.0,84383.0,0.6707167]
[1744854978913,0.04398,84384.0,84383.0,0.3099167]
[1744854979108,0.01108,84384.0,84383.0,0.6707167]
[1744854979313,0.07632,84393.0,84385.0,0.0592563]
[1744854979514,0.0306,84395.0,84394.0,0.1185013]
[1744854979718,0.0306,84395.0,84394.0,0.2885013]
[1744854980122,0.03068,84395.0,84394.0,0.2885013]
[1744854980717,0.03668,84395.0,84394.0,0.2885013]
[1744854981823,0.03968,84395.0,84394.0,0.2885013]
[1744854982326,0.10014581,84400.0,84394.0,0.2292504]
[1744854982533,0.1,84400.0,84399.0,0.1184942]
[1744854982720,0.10008,84400.0,84399.0,0.2884942]
[1744854983416,0.10008,84400.0,84399.0,0.3525942]
[1744854983817,0.10208,84400.0,84399.0,0.3525942]
[1744854984625,0.2205728,84400.0,84399.0,0.3525942]
[1744854987921,0.10208,84400.0,84399.0,0.3525942]
[1744854991619,0.2205728,84400.0,84399.0,0.3525942]
[1744854991823,0.2788728,84400.0,84399.0,0.3213942]
[1744854999334,0.2523728,84400.0,84399.0,0.3213942]
[1744855002837,0.2205728,84400.0,84399.0,0.3213942]
[1744855014050,0.2204928,84400.0,84399.0,0.3213942]
[1744855015741,0.102,84400.0,84399.0,0.3213942]
[1744855018558,0.10208,84400.0,84399.0,0.3213942]
[1744855020653,0.2205728,84400.0,84399.0,0.3213942]
[1744855025458,0.2205728,84400.0,84399.0,0.3515942]
[1744855026150,0.2771728,84400.0,84399.0,0.3515942]
[1744855026950,0.2761728,84400.0,84399.0,0.3515942]
[1744855029747,0.2496728,84400.0,84399.0,0.2331]
[1744855029953,0.2761728,84400.0,84399.0,0.0329]
[1744855030145,0.48384,84400.0,84384.0,0.01]
[1744855030449,0.1185139,84385.0,84384.0,0.1285146]
[1744855031342,0.1185195,84381.0,84380.0,0.00017777]
[1744855031647,0.4793195,84381.0,84380.0,0.00017777]
[1744855032549,0.4793195,84381.0,84380.0,0.00117777]
[1744855033053,0.4793195,84381.0,84380.0,0.00617777]
[1744855033641,0.4793195,84381.0,84380.0,0.00217777]
[1744855033849,0.4793995,84381.0,84380.0,0.00217777]
[1744855034258,0.4793995,84381.0,84380.0,0.03347777]
[1744855034452,0.4793995,84381.0,84380.0,0.06317777]
[1744855034645,0.4793995,84381.0,84380.0,0.03187777]
[1744855037153,0.5678995,84381.0,84380.0,0.03187777]
[1744855041259,0.4793995,84381.0,84380.0,0.18187777]
[1744855041564,0.1185195,84381.0,84380.0,0.32039867]
[1744855041753,0.1185995,84381.0,84380.0,0.32039867]
[1744855042065,0.1185195,84381.0,84380.0,0.32039867]
[1744855042254,0.1185995,84381.0,84380.0,0.32039867]
[1744855042658,0.1185995,84381.0,84380.0,0.32339867]
[1744855043055,8e-05,84381.0,84380.0,0.68519867]
[1744855043547,0.0592543,84389.0,84388.0,0.0592543]
[1744855043752,0.05936231,84389.0,84388.0,0.3140543]
[1744855043952,0.0592543,84389.0,84388.0,0.3140543]
[1744855044162,0.0593343,84389.0,84388.0,0.3140543]
[1744855044464,8e-05,84389.0,84388.0,0.3140543]
[1744855044656,8e-05,84389.0,84388.0,0.3160543]
[1744855045059,0.0592514,84393.0,84392.0,0.1777497]
[1744855045364,0.05935781,84397.0,84396.0,0.1777457]
[1744855045563,0.0592498,84397.0,84396.0,0.3377457]
[1744855045861,0.0593298,84397.0,84396.0,0.3377457]
[1744855046058,0.0593298,84397.0,84396.0,0.4013457]
[1744855046656,8e-05,84397.0,84396.0,0.4013457]
[1744855046862,0.07612,84405.0,84399.0,0.1184942]
[1744855047064,0.1353631,84405.0,84399.0,0.2784942]
[1744855047259,0.2184928,84400.0,84399.0,0.2784942]
[1744855048254,0.2185728,84400.0,84399.0,0.2784942]
[1744855048562,0.2195728,84400.0,84399.0,0.2784942]
[1744855048965,0.2195728,84400.0,84399.0,0.1184942]
[1744855049459,0.2195728,84400.0,84399.0,0.2784942]
[1744855049662,0.2460728,84400.0,84399.0,0.2784942]
[1744855049858,0.2789728,84400.0,84399.0,0.2784942]
[1744855051061,0.1184971,84397.0,84396.0,0.0636]
[1744855051361,0.1777553,84395.0,84394.0,0.0592505]
[1744855051666,0.1777553,84395.0,84394.0,0.2392505]
[1744855051864,0.2370065,84395.0,84394.0,0.0592505]
[1744855052169,0.2699065,84395.0,84394.0,0.2392505]
[1744855052767,0.2699065,84395.0,84394.0,0.2402505]
[1744855063958,0.2699065,84395.0,84394.0,0.001]
[1744855064760,0.2699065,84395.0,84394.0,0.1195013]
[1744855067378,0.2699065,84395.0,84394.0,0.001]
[1744855068371,0.2699065,84395.0,84394.0,0.1195013]
[1744855071375,0.2699065,84395.0,84394.0,0.1518013]
[1744855074672,0.2699065,84395.0,84394.0,0.0333]
[1744855090385,0.2370065,84395.0,84394.0,0.0333]
[1744855091181,0.2370065,84395.0,84394.0,0.1518013]
[1744855091377,0.2370065,84395.0,84394.0,0.1850013]
[1744855091682,0.2370065,84395.0,84394.0,0.0665]
[1744855099595,0.2635065,84395.0,84394.0,0.0665]
[1744855100097,0.2370065,84395.0,84394.0,0.0665]
[1744855101492,0.1185139,84385.0,84384.0,0.3608]
[1744855101698,0.1185195,84381.0,84380.0,0.00017777]
[1744855101884,0.1185265,84376.0,84375.0,0.0313]
[1744855102096,0.13015013,84376.0,84375.0,0.0313]
[1744855104094,0.13015013,84376.0,84375.0,0.0323]
[1744855104287,0.13015013,84376.0,84375.0,0.0343]
[1744855104699,0.13015013,84376.0,84375.0,0.0333]
[1744855104901,0.13015013,84376.0,84375.0,0.0343]
[1744855105196,0.13015013,84376.0,84375.0,0.0323]
[1744855106298,0.1185265,84376.0,84375.0,0.1823]
[1744855106494,0.1186065,84376.0,84375.0,0.1823]
[1744855106696,0.1186065,84376.0,84375.0,0.3008279]
[1744855106896,0.1186065,84376.0,84375.0,0.3018279]
[1744855107097,0.1185265,84376.0,84375.0,0.3018279]
[1744855107300,0.1186065,84376.0,84375.0,0.2998279]
[1744855107497,0.1186065,84376.0,84375.0,0.3338279]
[1744855107894,0.1186065,84376.0,84375.0,0.3318279]
[1744855108099,0.1186065,84376.0,84375.0,0.3358279]
[1744855108304,0.1186065,84376.0,84375.0,0.3368279]
[1744855109003,0.1186065,84376.0,84375.0,0.3358279]
[1744855111204,0.1186065,84376.0,84375.0,0.2173]
[1744855111604,0.1186065,84376.0,84375.0,0.3358279]
[1744855113707,0.1186065,84376.0,84375.0,0.3328279]
[1744855113907,0.1186065,84376.0,84375.0,0.3348279]
[1744855116813,0.1186065,84376.0,84375.0,0.2163]
[1744855117812,0.1186065,84376.0,84375.0,0.3348279]
[1744855121212,0.1186065,84376.0,84375.0,0.3318279]
[1744855121413,0.1186065,84376.0,84375.0,0.3348279]
[1744855121809,0.1186065,84376.0,84375.0,0.3318279]
[1744855122017,0.1186065,84376.0,84375.0,0.3348279]
[1744855122413,0.1186065,84376.0,84375.0,0.3318279]
[1744855122616,0.1186065,84376.0,84375.0,0.3348279]
[1744855123915,0.1186065,84376.0,84375.0,0.3318279]
[1744855124216,0.1186065,84376.0,84375.0,0.3348279]
[1744855124515,0.1186065,84376.0,84375.0,0.3318279]
[1744855124718,0.1186065,84376.0,84375.0,0.3348279]
[1744855132820,0.1186065,84376.0,84375.0,0.3358279]
[1744855133624,0.1186065,84376.0,84375.0,0.3328279]
[1744855133824,0.1186065,84376.0,84375.0,0.3358279]
[1744855134524,0.1186065,84376.0,84375.0,0.3368279]
[1744855139125,0.1185265,84376.0,84375.0,0.3368279]
[1744855140814,0.1185265,84376.0,84375.0,0.2183]
[1744855141228,0.1185265,84376.0,84375.0,0.3692279]
[1744855142826,0.1185265,84376.0,84375.0,0.3372279]
[1744855143027,0.1185265,84376.0,84375.0,0.2187]
[1744855143221,0.1185265,84376.0,84375.0,0.3372279]
[1744855144125,0.1185265,84376.0,84375.0,0.1874]
[1744855144435,0.1185265,84376.0,84375.0,0.0374]
[1744855147531,0.1185265,84376.0,84375.0,0.1559279]
[1744855147830,0.1185265,84376.0,84375.0,0.3159279]
[1744855148032,0.1185265,84376.0,84375.0,0.1974]
[1744855149133,0.1185265,84376.0,84375.0,0.2305]
[1744855150134,0.1185265,84376.0,84375.0,0.3490279]
[1744855150331,0.1185265,84376.0,84375.0,0.3590279]
[1744855150526,0.1186065,84376.0,84375.0,0.3590279]
[1744855153935,0.1185265,84376.0,84375.0,0.3590279]
[1744855154131,0.1186065,84376.0,84375.0,0.3590279]
[1744855157535,0.1185265,84376.0,84375.0,0.3590279]
[1744855157742,0.1186065,84376.0,84375.0,0.3590279]
[1744855172160,0.11862821,84381.0,84380.0,0.1185209]
[1744855172362,0.07592,84394.0,84383.0,0.1185167]
[1744855172554,0.1185103,84388.0,84383.0,0.2685167]
[1744855172960,0.1185112,84387.0,84383.0,0.2685167]
[1744855173163,0.1185089,84389.0,84383.0,0.2685167]
[1744855173362,0.00025741,84384.0,84383.0,0.6293167]
[1744855173564,0.00017741,84384.0,84383.0,0.6293167]
[1744855173763,0.00025741,84384.0,84383.0,0.6293167]
[1744855173957,0.00025741,84384.0,84383.0,0.6303167]
[1744855174364,0.00010801,84391.0,84390.0,0.1185069]
[1744855174560,0.00010801,84391.0,84390.0,0.2985069]
[1744855174759,0.11861351,84391.0,84390.0,0.2985069]
[1744855174956,0.1185055,84391.0,84390.0,0.3308069]
[1744855175169,0.1185855,84391.0,84390.0,0.3635069]
[1744855175656,0.1185855,84391.0,84390.0,0.3645069]
[1744855176165,8e-05,84391.0,84390.0,0.3645069]
[1744855177970,0.1184961,84398.0,84397.0,0.1184971]
[1744855178165,0.1494961,84398.0,84397.0,0.2984971]
[1744855178970,0.1494961,84398.0,84397.0,0.2884971]
[1744855179562,0.1802961,84398.0,84397.0,0.2884971]
[1744855179770,0.1802961,84398.0,84397.0,0.1184971]
[1744855179971,0.1802961,84398.0,84397.0,0.2784971]
[1744855180173,0.1812961,84398.0,84397.0,0.2784971]
[1744855187879,0.1812961,84398.0,84397.0,0.1184971]
[1744855188179,0.1812961,84398.0,84397.0,0.2784971]
[1744855190883,0.1812961,84398.0,84397.0,0.16]
[1744855191071,0.1184999,84395.0,84394.0,0.1504005]
[1744855191272,0.1184999,84395.0,84394.0,0.3204005]
[1744855191881,0.1184976,84397.0,84394.0,0.2019]
[1744855192082,0.118496,84398.0,84397.0,0.1184971]
[1744855192378,0.118496,84398.0,84397.0,0.2684971]
[1744855193574,0.2184935,84400.0,84399.0,0.1184942]
[1744855193777,0.1,84400.0,84399.0,0.2684942]
[1744855194180,0.2184928,84400.0,84399.0,0.3300942]
[1744855194985,0.2194928,84400.0,84399.0,0.3300942]
[1744855195187,0.2195728,84400.0,84399.0,0.3300942]
[1744855195782,0.2195728,84400.0,84399.0,0.2986942]
[1744855195986,0.2821728,84400.0,84399.0,0.2986942]
[1744855200090,0.2821728,84400.0,84399.0,0.1486942]
[1744855201383,0.2821728,84400.0,84399.0,0.3186942]
[1744855203411,0.2821728,84400.0,84370.0,0.10328421]
[1744855203412,0.1185069,84390.0,84370.0,0.10328421]
[1744855203584,0.4793069,84390.0,84389.0,0.27868607]
[1744855203890,0.4793069,84390.0,84389.0,0.16017777]
[1744855204688,0.1185069,84390.0,84389.0,0.00117777]
[1744855205484,0.4793069,84390.0,84389.0,0.03417777]
[1744855206189,0.4793069,84390.0,84389.0,0.21417777]
[1744855206898,0.5551869,84390.0,84389.0,0.21417777]
[1744855207796,0.5551869,84390.0,84389.0,0.24577777]
[1744855208697,0.4793069,84390.0,84389.0,0.24577777]
[1744855208893,0.5551869,84390.0,84389.0,0.24577777]
[1744855209697,0.5551869,84390.0,84389.0,0.21417777]
[1744855211400,0.5551869,84390.0,84389.0,0.03417777]
[1744855211901,0.5551869,84390.0,84389.0,0.00117777]
[1744855212989,0.1185153,84384.0,84383.0,0.0304]
[1744855213190,0.1185279,84375.0,84374.0,0.0301]
[1744855213501,0.1185364,84369.0,84368.0,0.0326]
[1744855213694,0.1185364,84369.0,84368.0,0.2126]
[1744855214296,0.1185364,84369.0,84368.0,0.3311378]
[1744855214695,0.1185364,84369.0,84368.0,0.3321378]
[1744855215102,0.1185364,84369.0,84368.0,0.3645378]
[1744855216005,0.1185364,84369.0,84368.0,0.3685378]
[1744855216503,0.1185364,84369.0,84368.0,0.3675378]
[1744855217104,0.1185364,84369.0,84368.0,0.249]
[1744855218905,0.1185364,84369.0,84368.0,0.3981378]
[1744855219710,0.1778006,84372.0,84371.0,0.1185336]
[1744855219910,0.1778006,84372.0,84371.0,0.2885336]
[1744855220107,0.1777927,84376.0,84375.0,0.1185279]
[1744855220300,0.1777927,84376.0,84375.0,0.2885279]
[1744855220804,0.00017777,84377.0,84376.0,0.1185265]
[1744855221001,0.00017777,84377.0,84376.0,0.7530265]
[1744855221206,0.1185061,84391.0,84390.0,0.177757]
[1744855221409,0.1185061,84391.0,84390.0,0.347757]
[1744855221902,0.1185861,84391.0,84390.0,0.347757]
[1744855222105,0.1185061,84391.0,84390.0,0.17]
[1744855222305,0.1185861,84391.0,84390.0,0.17]
[1744855222495,0.1185861,84391.0,84390.0,0.2885069]
[1744855223299,0.1185861,84391.0,84390.0,0.2895069]
[1744855233512,0.1185861,84391.0,84390.0,0.171]
[1744855233709,0.1490861,84391.0,84390.0,0.171]
[1744855234716,0.1490861,84391.0,84390.0,0.2895069]
[1744855236010,0.1490861,84391.0,84390.0,0.1195069]
[1744855236209,0.1490861,84391.0,84390.0,0.001]
[1744855236210,0.1820861,84391.0,84390.0,0.001]
[1744855236515,0.1185083,84389.0,84388.0,0.0329]
[1744855236720,0.1185167,84383.0,84374.0,0.3608]
[1744855237018,0.1185167,84383.0,84378.0,0.1185235]
[1744855237318,0.1185167,84383.0,84379.0,0.151522]
[1744855237719,0.1821167,84383.0,84379.0,0.033]
[1744855237912,0.1821167,84383.0,84382.0,0.00317777]
[1744855240026,0.1821167,84383.0,84382.0,0.00417777]
[1744855240317,0.5429167,84383.0,84382.0,0.00417777]
[1744855240505,0.5429167,84383.0,84382.0,0.00217777]
[1744855241414,0.1185209,84380.0,84379.0,0.033]
[1744855243219,0.1185308,84373.0,84372.0,0.0313]
[1744855243422,0.1185308,84373.0,84372.0,0.1913]
[1744855243808,0.1185308,84373.0,84372.0,0.3098322]
[1744855244613,0.1518308,84373.0,84372.0,0.3403322]
[1744855244911,0.1518308,84373.0,84372.0,0.1803322]
[1744855245112,0.1518308,84373.0,84372.0,0.2318]
[1744855245509,0.1518308,84373.0,84372.0,0.3503322]
[1744855246109,0.1518308,84373.0,84372.0,0.3523322]
[1744855246616,0.1518308,84373.0,84372.0,0.3503322]
[1744855246817,0.1518308,84373.0,84372.0,0.3523322]
[1744855248223,0.5126308,84373.0,84372.0,0.2338]
[1744855248416,0.52428758,84373.0,84372.0,0.2338]
[1744855248719,0.52428758,84373.0,84372.0,0.2025]
[1744855248920,0.52428758,84373.0,84372.0,0.0325]
[1744855250011,0.52428758,84373.0,84372.0,0.0636]
[1744855250518,0.52428758,84373.0,84372.0,0.2336]
[1744855251421,0.52428758,84373.0,84372.0,0.2025]
[1744855252618,0.52428758,84373.0,84372.0,0.2355]
[1744855253825,0.52428758,84373.0,84372.0,0.0655]
[1744855254220,0.55438758,84373.0,84372.0,0.0325]
[1744855256821,0.55438758,84373.0,84372.0,0.0305]
[1744855257015,0.55538758,84373.0,84372.0,0.0305]
[1744855257215,0.55538758,84373.0,84372.0,0.0609]
[1744855258828,0.55438758,84373.0,84372.0,0.0609]
[1744855259129,0.55538758,84373.0,84372.0,0.0609]
[1744855259928,0.1185462,84362.0,84361.0,0.0305]
[1744855260322,0.1185546,84356.0,84355.0,0.00509747]
[1744855260527,0.1185631,84350.0,84349.0,0.032]
[1744855260726,0.1185687,84346.0,84345.0,8e-05]
[1744855261029,0.1185687,84346.0,84343.0,0.032108]
[1744855261030,0.1185715,84344.0,84343.0,0.032]
[1744855261230,0.1185715,84344.0,84343.0,0.182]
[1744855262525,0.1185715,84344.0,84343.0,0.187]
[1744855262829,0.1185715,84344.0,84343.0,0.037]
[1744855263034,0.1185715,84344.0,84343.0,0.0994]
[1744855263244,0.1185715,84344.0,84343.0,0.2594]
[1744855264432,0.13040525,84344.0,84343.0,0.2594]
[1744855265131,0.1185715,84344.0,84343.0,0.2594]
[1744855265532,0.1185715,84344.0,84343.0,0.0994]
[1744855266029,0.13075457,84344.0,84343.0,0.0994]
[1744855266229,0.13075457,84344.0,84343.0,0.2494]
[1744855267324,0.1185715,84344.0,84343.0,0.2494]
[1744855268430,0.13044191,84344.0,84343.0,0.0994]
[1744855268732,0.16114191,84344.0,84343.0,0.0994]
[1744855269027,0.16114191,84344.0,84343.0,0.0674]
[1744855269230,0.19154191,84344.0,84343.0,0.0674]
[1744855269621,0.19154191,84344.0,84343.0,0.06748]
[1744855270235,0.55234191,84344.0,84343.0,0.06748]
[1744855272532,0.19154191,84344.0,84343.0,0.06748]
[1744855272833,0.55234191,84344.0,84343.0,0.06748]
[1744855273434,0.19154191,84344.0,84343.0,0.06748]
[1744855273735,0.55234191,84344.0,84343.0,0.06748]
[1744855274236,0.19154191,84344.0,84343.0,0.06748]
[1744855274438,0.55234191,84344.0,84343.0,0.06748]
[1744855275737,0.55234191,84344.0,84343.0,0.0674]
[1744855276340,0.55234191,84344.0,84343.0,0.07029062]
[1744855278449,0.55234191,84344.0,84343.0,0.03839062]
[1744855278645,0.1185799,84338.0,84337.0,0.00017777]
[1744855278846,0.1944599,84338.0,84337.0,0.15017777]
[1744855279035,0.1944599,84338.0,84337.0,0.00017777]
[1744855279231,0.1185898,84331.0,84330.0,0.0616]
[1744855279431,0.1185898,84331.0,84330.0,0.2316]
[1744855281043,0.1185898,84331.0,84330.0,0.2416]
[1744855281341,0.1185898,84331.0,84330.0,0.0716]
[1744855281749,0.1185898,84331.0,84330.0,0.1031]
[1744855281935,0.1185898,84331.0,84330.0,0.01008]
[1744855282249,0.1844898,84331.0,84330.0,0.01008]
[1744855287452,0.1844898,84331.0,84330.0,0.01]
[1744855287951,0.1844898,84331.0,84330.0,0.01008]
[1744855290353,0.5452898,84331.0,84330.0,0.01008]
[1744855291053,0.1844898,84331.0,84330.0,0.01008]
[1744855291243,0.5452898,84331.0,84330.0,0.01008]
[1744855293352,0.5121898,84331.0,84330.0,0.04228]
[1744855293543,0.5121898,84331.0,84330.0,0.27588]
[1744855293855,0.07588,84336.0,84334.0,0.1185852]
[1744855294151,0.1351714,84336.0,84335.0,0.0633]
[1744855294451,0.1351714,84336.0,84335.0,0.2333]
[1744855296448,0.0592914,84336.0,84335.0,0.3518842]
[1744855296846,0.0592914,84336.0,84335.0,0.3588842]
[1744855297246,0.0593714,84336.0,84335.0,0.3588842]
[1744855306452,8e-05,84336.0,84335.0,0.3588842]
[1744855306649,0.1186628,84336.0,84335.0,0.3588842]
[1744855306849,0.1185828,84336.0,84335.0,0.3588842]
[1744855307246,0.1186628,84336.0,84335.0,0.3588842]
[1744855308853,8e-05,84336.0,84335.0,0.3588842]
[1744855309049,0.1186628,84336.0,84335.0,0.3588842]
[1744855314459,0.1186628,84336.0,84335.0,0.7196842]
[1744855315147,0.1186628,84336.0,84335.0,0.3588842]
[1744855315351,0.1186628,84336.0,84335.0,0.7196842]
[1744855319058,8e-05,84336.0,84335.0,0.7196842]
[1744855319259,0.1186628,84336.0,84335.0,0.7196842]
[1744855320358,0.1186628,84336.0,84335.0,0.3588842]
[1744855320569,0.1186628,84336.0,84335.0,0.7196842]
[1744855321666,0.1186628,84336.0,84335.0,0.3588842]
[1744855321868,0.1186628,84336.0,84335.0,0.7196842]
[1744855323485,0.00611699,94751.0,84344.0,0.1185715]
[1744855323486,0.1185705,84345.0,84344.0,0.1185715]
[1744855323656,0.1185705,84345.0,84344.0,0.15]
[1744855323971,0.1185828,84336.0,84335.0,0.4863839]
[1744855324165,0.1185828,84336.0,84335.0,0.5478]
[1744855324362,0.1185828,84336.0,84335.0,0.6663842]
[1744855324862,0.1515828,84336.0,84335.0,0.6613842]
[1744855325363,0.1515828,84336.0,84335.0,0.6593842]
[1744855325667,0.1832828,84336.0,84335.0,0.7233842]
[1744855325969,0.1833628,84336.0,84335.0,0.7233842]
[1744855326269,0.1833628,84336.0,84335.0,0.7253842]
[1744855326770,0.1516628,84336.0,84335.0,0.7253842]
[1744855326968,0.03308,84336.0,84335.0,0.7303842]
[1744855327266,0.0307,84346.0,84344.0,0.1185715]
[1744855327469,0.1185701,84345.0,84344.0,0.2685715]
[1744855327665,0.1186501,84345.0,84344.0,0.2685715]
[1744855327860,0.1185701,84345.0,84344.0,0.2685715]
[1744855328061,0.1186501,84345.0,84344.0,0.2685715]
[1744855328255,8e-05,84345.0,84344.0,0.2685715]
[1744855328566,0.1186501,84345.0,84344.0,0.2685715]
[1744855329466,0.2119501,84345.0,84344.0,0.2685715]
[1744855329860,0.2119501,84345.0,84344.0,0.2725715]
[1744855330558,0.2119501,84345.0,84344.0,0.3055715]
[1744855332670,0.1810501,84345.0,84344.0,0.3055715]
[1744855336672,0.1503501,84345.0,84344.0,0.3055715]
[1744855339165,0.03178,84345.0,84344.0,0.3055715]
[1744855341465,0.1503501,84345.0,84344.0,0.3055715]
[1744855342068,0.1503501,84345.0,84344.0,0.2725715]
[1744855343567,0.5111501,84345.0,84344.0,0.154]
[1744855343871,0.5111501,84345.0,84344.0,0.004]
[1744855344071,0.5869901,84345.0,84344.0,0.004]
[1744855344276,0.1185842,84335.0,84334.0,8e-05]
[1744855344471,0.1185884,84332.0,84331.0,0.18031444]
[1744855344872,0.1185884,84332.0,84329.0,0.00509905]
[1744855344873,0.1185912,84330.0,84329.0,0.00509905]
[1744855345467,0.1494912,84330.0,84329.0,0.00509905]
[1744855346067,0.2253312,84330.0,84329.0,0.00517905]
[1744855346467,0.2254112,84330.0,84329.0,0.00517905]
[1744855346775,0.2254112,84330.0,84329.0,0.01117905]
[1744855347775,0.2254112,84330.0,84329.0,0.01417905]
[1744855349878,0.2254112,84330.0,84329.0,0.00817905]
[1744855350076,0.2254112,84330.0,84329.0,0.00917905]
[1744855350481,0.5862112,84330.0,84329.0,0.00917905]
[1744855350674,0.5862112,84330.0,84329.0,0.00617905]
[1744855352387,0.5861312,84330.0,84329.0,0.15617905]
[1744855352580,0.5862112,84330.0,84329.0,0.15617905]
[1744855352884,0.5862112,84330.0,84329.0,0.27477165]
[1744855353385,0.5861312,84330.0,84329.0,0.27477165]
[1744855353589,0.5862112,84330.0,84329.0,0.27477165]
[1744855353770,8e-05,84330.0,84329.0,0.27477165]
[1744855353979,0.0313,84331.0,84330.0,0.1185912]
[1744855354177,0.1185841,84336.0,84335.0,0.1185828]
[1744855354381,0.1185841,84336.0,84335.0,0.2885828]
[1744855354584,0.07584,84337.0,84336.0,0.1185828]
[1744855354780,0.07584,84342.0,84341.0,0.0592878]
[1744855355087,0.0592851,84345.0,84344.0,0.1185715]
[1744855355672,0.0593651,84345.0,84344.0,0.2901715]
[1744855355881,0.0593651,84345.0,84344.0,0.3228715]
[1744855356183,0.0623651,84345.0,84344.0,0.3228715]
[1744855356575,0.0593651,84345.0,84344.0,0.3228715]
[1744855356882,0.0593651,84345.0,84344.0,0.3248715]
[1744855357478,0.0900651,84345.0,84344.0,0.2942715]
[1744855358484,0.0593651,84345.0,84344.0,0.2942715]
[1744855359685,8e-05,84345.0,84344.0,0.2942715]
[1744855359881,0.1185701,84345.0,84344.0,0.2942715]
[1744855360076,0.1487501,84345.0,84344.0,0.2942715]
[1744855360281,0.1487501,84345.0,84344.0,0.3255715]
[1744855365784,0.1486701,84345.0,84344.0,0.3255715]
[1744855370093,0.1486701,84345.0,84344.0,0.1215715]
[1744855370283,0.1486701,84345.0,84344.0,0.2715715]
[1744855371190,0.1486701,84345.0,84344.0,0.002]
[1744855371390,0.1185814,84337.0,84336.0,0.1185822]
[1744855371592,0.4793814,84337.0,84336.0,0.1185822]
[1744855372289,0.5418814,84337.0,84336.0,0.1185822]
[1744855372887,0.55375138,84337.0,84336.0,0.1185822]
[1744855373083,0.5418814,84337.0,84336.0,0.1185822]